Cogmind - Beta 17.1 --- EXPLORER MODE // 2026.09.03 @ 12:07:40 Player: viper Result: Destroyed by Y6-1I5(R) with Subdweller Laser Performance ------------- Evolutions (0) 0 Regions Visited (2) 400 Robots Destroyed (32) 160 Value Destroyed (852) 852 Prototype IDs (0) 0 Alien Tech Used (0) 0 Bonus (0) 0 TOTAL SCORE: 1412 Bonus ------- None Cogmind --------- Core Integrity 0/250 Matter 234/300 Energy 100/100 System Corruption 0% Temperature Cool (6) Movement Walking (470) Ox5 Location -10/Subcaves Parts ------- > --- POWER (2) -------- Subdweller Power Source > --- PROPULSION (2) --- Aluminum Leg > --- UTILITY (2) ------ High-capacity Storage Unit Utility Shielding > --- WEAPON (2) ------- Battle Rifle Battle Cannon > --- INVENTORY (20) --- High-capacity Matter Pod (200) Structural Scanner Targeting Computer Targeting Computer Small Laser Light Assault Rifle Battle Cannon Hammer Peak State ------------ > --- POWER ------------ Ion Engine Ion Engine > --- PROPULSION ------- Aluminum Leg Aluminum Leg > --- UTILITY ---------- Heat Sink Medium Storage Unit > --- WEAPON ----------- EM Pulse Gun Small Laser > --- INVENTORY -------- Aluminum Leg High-capacity Matter Pod Structural Scanner Targeting Computer Targeting Computer Utility Shielding Small Laser Assault Rifle Light Assault Rifle Light Cannon [Rating: 9] Favorites ----------- Power Ion Engine Engine Ion Engine Propulsion Aluminum Leg Leg Aluminum Leg Utility High-capacity Storage Unit Device Heat Sink Storage High-capacity Storage Unit Processor Targeting Computer Protection Utility Shielding Weapon Assault Rifle Energy Gun Small Laser Ballistic Gun Assault Rifle Ballistic Cannon Light Cannon Impact Weapon Hammer Build | -11 -10 -10 ------- Run | Yrd Mat Sub Slots Evolved 1 | . 1 . Power 1 | . 1 . Propulsion . | . . . Utility . | . . . Weapon . | . . . Parts Attached 21 | 8 8 5 Power 3 | 1 1 1 Engine 3 | 1 1 1 Core . | . . . Reactor . | . . . Propulsion 3 | 2 . 1 Treads . | . . . Leg 3 | 2 . 1 Wheel . | . . . Hover . | . . . Flight . | . . . Utility 6 | 2 3 1 Device 1 | . 1 . Storage 3 | 1 2 . Processor 1 | 1 . . Hackware . | . . . Protection 1 | . . 1 Artifact . | . . . Weapon 9 | 3 4 2 Energy Gun 3 | 3 . . Energy Cannon . | . . . Ballistic Gun 3 | . 2 1 Ballistic Cannon 2 | . 1 1 Launcher . | . . . Special Weapon . | . . . Impact Weapon 1 | . 1 . Slashing Weapon . | . . . Piercing Weapon . | . . . Special Melee Weapon . | . . . Unidentified Prototypes . | . . . Parts Lost 8 | . . 8 Power 2 | . . 2 Propulsion 2 | . . 2 Utility 1 | . . 1 Weapon 3 | . . 3 Highest Loss Streak 8 | . . 8 To Critical Strikes . | . . . Average Backups 8 | 2 8 8 Power . | . . . Propulsion . | . . . Utility 4 | 1 4 4 Weapon 3 | . 3 3 Tool/Special . | . . . Unused Backups 5 | . . 5 Power . | . . . Propulsion . | . . . Utility 4 | . . 4 Weapon 1 | . . 1 Tool/Special . | . . . Average Slot Usage (%) 92 | . 99 81 Engine 20 | . 24 14 Leg 22 | . 25 17 Device 8 | . 11 5 Storage 12 | . 12 12 Protection 2 | . . 6 Energy Gun 7 | . 12 . Ballistic Gun 11 | . 10 11 Ballistic Cannon 5 | . 1 11 Peak Build Rating 9 | 7 9 9 Average Rating 8 | 4 8 8 On Entrance 5 | . 7 9 Avg Prop Armor Cover (%) . | . . . Naked Turns . | . . . Heaviest Build 56 | 18 56 56 Greatest Support 20 | 20 20 20 Greatest Overweight (x) 5 | 4 2 5 Average Overweight (x) 1 | . 1 3 Largest Inventory Capacity 20 | 10 20 20 Average Capacity 17 | 9 16 20 Most Carried 11 | 4 11 10 Average Carried 8 | 2 8 8 Final Capacity 20 | 10 20 20 Final Carried 10 | 4 10 8 Class Distribution -------------------- 100% | Hacker-Mutant Dominant Class ---------------- Hacker-Mutant | -10/Materials Hacker-Mutant | -10/Subcaves Resources | -11 -10 -10 ----------- Run | Yrd Mat Sub Matter Collected 912 | 231 462 219 Remotely . | . . . Salvage Created 1105 | . 806 299 Parts 69 | . 46 23 Haulers Intercepted 2 | . 2 . Recyclers Shooed . | . . . Parts Field Recycled . | . . . Retrieved Matter . | . . . Parts Self-Destructed . | . . . Prevented . | . . . Parts Restored . | . . . Kills | -11 -10 -10 ------- Run | Yrd Mat Sub Combat Hostiles Destroyed 25 | . 17 8 Guns 20 | . 15 5 Cannons 4 | . 1 3 AOE 1 | . 1 . Classes Destroyed 8 | . 6 2 Worker 1 | . 1 . Hauler 2 | . 2 . Recycler 1 | . 1 . Watcher 3 | . 3 . Swarmer 6 | . 6 . Grunt 12 | . 11 1 Sentry 1 | . . 1 Subdweller 6 | . . 6 Best Kill Streak 5 | . 5 2 Combat Bots Only 3 | . 3 2 Max Kills in Single Turn 1 | . 1 1 Gunslinging . | . . . Exploded 1 | . 1 . Melee . | . . . Uniques/NPCs Destroyed . | . . . Combat | -11 -10 -10 -------- Run | Yrd Mat Sub Hostile Shots Fired 162 | . 82 80 Missed 45 | . 20 25 Hits 117 | . 62 55 Projectile 117 | . 62 55 Damage Taken 1222 | . 429 793 Core 261 | . 111 150 Absorbed by Shields . | . . . Ignored by Resistances 751 | . 285 466 Regen/Repaired (Parts) 28 | . 28 . Core Remaining (%) 100 | 100 . . Volleys Fired 104 | . 60 44 Largest 2 | . 2 2 Hottest 80 | . 80 60 Shots Fired 203 | . 116 87 Gun 163 | . 107 56 Cannon 40 | . 9 31 Launcher . | . . . Special . | . . . Kinetic 121 | . 46 75 Thermal 43 | . 33 10 Explosive . | . . . Electromagnetic 39 | . 37 2 Robot Hit Streak 36 | . 13 36 Robot Miss Streak 2 | . 2 2 Penetration Max . | . . . Secondary Targets 1 | . 1 . Max Gunslinging Chain 1 | . 1 . Shots Hit Robots 164 | . 85 79 Core Hits 61 | . 42 19 Critical Kills . | . . . Critical Parts Destroyed . | . . . Critical Strikes 2 | . . 2 Destroy 1 | . . 1 Blast 1 | . . 1 Melee Attacks 4 | . 4 . Impact 4 | . 4 . Slashing . | . . . Piercing . | . . . Sneak Attacks . | . . . Combat Hostiles . | . . . Follow-up Attacks . | . . . Damage Inflicted 2197 | 9 1173 1015 Guns 1548 | . 964 584 Cannons 515 | . 84 431 Explosions 118 | . 118 . Melee . | . . . Ramming 16 | 9 7 . Kinetic 1335 | . 428 907 Thermal 408 | . 322 86 Explosive . | . . . Electromagnetic 438 | . 416 22 Impact . | . . . Slashing . | . . . Piercing . | . . . Highest Corruption . | . . . Average Corruption . | . . . Corruption Purged . | . . . Corruption Blocked . | . . . Overload Shots . | . . . Overflow Damage . | . . . Projectiles . | . . . Explosions . | . . . Melee . | . . . Knockbacks 8 | . 2 6 Impact . | . . . Kinetic 8 | . 2 6 Secondary . | . . . Self-Inflicted Damage 49 | . 49 . Shots 3 | . 3 . Rammed . | . . . Targets Rammed 5 | 1 4 . Kicked 5 | 1 4 . Crushed . | . . . Highest Temperature 45 | . 45 . Average Temperature 10 | . 10 . Received Heat Transfer 597 | . 270 327 Siege Activations . | . . . Martial Activations . | . . . Shielding Activations . | . . . Robots Disrupted . | . . . Combat Hostiles . | . . . Robots Corrupted . | . . . Combat Hostiles . | . . . Parts Fried . | . . . Impact Corruptions . | . . . Robots Melted . | . . . Combat Hostiles . | . . . Parts Melted 3 | . 1 2 Heat Transferred 875 | . 675 200 Parts Sabotaged . | . . . Parts Stolen . | . . . Parts Stripped . | . . . Power Chain Reactions 4 | . 4 . Alert | -11 -10 -10 ------- Run | Yrd Mat Sub Maximum Alert Level . | . . . Low Security (%) 100 | 100 100 . Level 1 . | . . . Level 2 . | . . . Level 3 . | . . . Level 4 . | . . . Level 5 . | . . . High Security . | . . . Max Security . | . . . Peak Influence 79 | . 79 . Initial . | . . . Average 10 | . 10 . Influence Increases 566 | . 526 40 Destroy 0b10 Robot/C 380 | . 340 40 Destroy 0b10 Robot/NC 35 | . 35 . Destroy Leader 80 | . 80 . Successful Hack 22 | . 22 . Disable Machine 16 | . 16 . Destroy Structure 18 | . 18 . Partial Spotted 15 | . 15 . Influence Decreases 566 | . 526 40 Time Decay 566 | . 526 40 Squads Dispatched 4 | . 4 . Investigation 4 | . 4 . Extermination . | . . . Reinforcement . | . . . Assault . | . . . Garrison . | . . . Intercept . | . . . Searches Triggered . | . . . Construction Impeded . | . . . Haulers Reinforced . | . . . Active Scanning Responses . | . . . Cargo Convoy Interrupts . | . . . Stealth | -11 -10 -10 --------- Run | Yrd Mat Sub Distress Signals 3 | . 3 . Communications Jammed . | . . . Distress Signals . | . . . Times Spotted 32 | . 22 10 Peak Tracking Total 3 | . 3 2 Tactical Retreats . | . . . Traps | -11 -10 -10 ------- Run | Yrd Mat Sub Traps Triggered . | . . . Indirectly . | . . . Trap Hack Attempts . | . . . Triggered . | . . . Disarmed 1 | . 1 . Reprogrammed . | . . . Reused . | . . . Traps Extracted . | . . . Installed . | . . . Triggered . | . . . Machines | -11 -10 -10 ---------- Run | Yrd Mat Sub Machines Disabled 4 | . 4 . Max in Single Turn 2 | . 2 . Machines Repaired . | . . . Machines Dismantled . | . . . Machines Sabotaged . | . . . Overloaded Fab Kills . | . . . Hacking | -11 -10 -10 --------- Run | Yrd Mat Sub Machines Accessed 8 | . 8 . Terminals 7 | . 7 . Fabricators . | . . . Repair Stations 1 | . 1 . Recycling Units . | . . . Scanalyzers . | . . . Garrison Access . | . . . Total Hacks 33 | . 33 . Successful 25 | . 25 . Failed 8 | . 8 . Catastrophic 2 | . 2 . Database Lockouts . | . . . Manual . | . . . Terminals 31 | . 31 . Fabricators . | . . . Repair Stations 2 | . 2 . Recycling Units . | . . . Scanalyzers . | . . . Garrison Access . | . . . Terminal Hacks 23 | . 23 . Record 8 | . 8 . Branch Access Points 1 | . 1 . Emergency Access Points 1 | . 1 . Machine Index 1 | . 1 . Locate Traps 4 | . 4 . Disarm Traps 1 | . 1 . Dispatch Records 2 | . 2 . Reinforcement Status 3 | . 3 . Hauler Manifests 1 | . 1 . Registered Components 1 | . 1 . Fabricator Hacks . | . . . Repair Station Hacks 2 | . 2 . Scan Component 1 | . 1 . Repair 1 | . 1 . Recycling Unit Hacks . | . . . Scanalyzer . | . . . Garrison Access Hacks . | . . . Unauthorized Hacks . | . . . Terminals . | . . . Fabricators . | . . . Repair Stations . | . . . Recycling Units . | . . . Scanalyzers . | . . . Garrison Access . | . . . Data Cores Recovered . | . . . Used . | . . . Hacking Detections 6 | . 6 . Full Trace Events 6 | . 6 . Feedback Events . | . . . Feedback Blocked . | . . . Robot Schematics Acquired . | . . . Robots Built . | . . . Authchips . | . . . Time . | . . . Total Robot Build Rating . | . . . Part Schematics Acquired . | . . . Parts Built . | . . . Authchips . | . . . Time . | . . . Total Part Build Rating . | . . . Part Studies Acquired . | . . . Parts Repaired 1 | . 1 . Time 26 | . 26 . Parts Recycled . | . . . Recycled Matter . | . . . Retrieved Matter . | . . . Retrieved Components . | . . . Parts Scanalyzed . | . . . Part Schematics Acquired . | . . . Parts Damaged . | . . . Bothacking | -11 -10 -10 ------------ Run | Yrd Mat Sub Used RIF Installer . | . . . Robots Hacked . | . . . Non-combat . | . . . Combat . | . . . Robot Hacks Applied . | . . . Relay Couplers Released . | . . . Fabnet Peak Effective % . | . . . Robots Rewired . | . . . Allies Hacked . | . . . Hacks Repelled . | . . . Allies | -11 -10 -10 -------- Run | Yrd Mat Sub Total Allies . | . . . Largest Group . | . . . Highest-Rated Group . | . . . Highest-Rated Ally . | . . . Total Orders . | . . . Ally Attacks . | . . . Total Damage . | . . . Kills . | . . . Allies Corrupted . | . . . Allies Melted . | . . . Intel | -11 -10 -10 ------- Run | Yrd Mat Sub Active Infowar (turns) . | . . . Robot Analysis Total . | . . . Derelict Logs Recovered 1 | . . 1 Drone Launches . | . . . Drone Recoveries . | . . . Exploration | -11 -10 -10 ------------- Run | Yrd Mat Sub Turns Passed 3135 | 98 1806 1231 Spaces Moved 1080 | 70 688 322 Core 18 | 18 . . Treads . | . . . Legs 1062 | 52 688 322 Wheels . | . . . Hover . | . . . Flight . | . . . Fastest Speed 50 | 50 190 260 Average Speed 252 | 116 227 334 Slowest Speed 470 | 250 260 470 Overloaded Moves . | . . . Propulsion Burnouts . | . . . Robots Hopped . | . . . Potential Cave-ins . | . . . Cave-ins Triggered . | . . . Exploration Rate (%) 42 | 3 89 36 Regions Visited 2 Branch Regions 1 Pre-discovered Areas . | . . . Known Exits Taken 2 | 1 1 . Unknown Exits Taken . | . . . Scrap Searched 1 | . . 1 Spaces Dug 4 | . 4 . Terrain Destroyed 18 | . 17 1 Melee 4 | . 4 . Projectile 1 | . . 1 AOE 13 | . 13 . Terrain Rammed . | . . . Walls Destroyed . | . . . Machines Disabled . | . . . Actions | -11 -10 -10 --------- Run | Yrd Mat Sub Total 1279 | 82 804 393 Wait 42 | . 26 16 Move 1078 | 69 687 322 Hop . | . . . Pick Up 14 | 4 9 1 Fast Attach 11 | 7 1 3 Attach 7 | . 2 5 Detach 2 | . . 2 Swap 8 | 1 7 . Drop 4 | . 4 . Fire 104 | . 60 44 Melee 4 | . 4 . Ram . | . . . Kick 5 | 1 4 . Crush . | . . . Escape Stasis . | . . . Rewire . | . . . Trap . | . . . Miscellaneous . | . . . Route ------- -11/Scrapyard -10/Materials (discovered 4 exits: *Mat x2 / *Min / *Sub) -10/Subcaves History --------- Turn | Location | Event 3 | -11/Scrapyard | Identified exit to Materials 3 | -11/Scrapyard | Discovered exit to Materials (range 16) 99 | -11/Scrapyard | Entered Materials 99 | -10/Materials | Evolved 1 slot: Power x1 207 | -10/Materials | Identified exit to Mines 315 | -10/Materials | Build established: Hacker-Mutant 487 | -10/Materials | Identified exit to Materials 487 | -10/Materials | Discovered exit to Materials (range 16) 1209 | -10/Materials | Repaired Ion Engine 1229 | -10/Materials | Discovered exit to Materials (range 12) 1851 | -10/Materials | Identified exit to Subcaves 1851 | -10/Materials | Discovered exit to Subcaves (range 12) 1905 | -10/Materials | Entered Subcaves 2125 | -10/Subcaves | Core integrity fell below 50% 2155 | -10/Subcaves | A swath of the cavern ceiling suddenly collapsed 2380 | -10/Subcaves | Learned 2 Materials zone layouts 2430 | -10/Subcaves | Ambushed by Subdwellers from Twisted Machinery 2460 | -10/Subcaves | Core integrity fell below 20% 2492 | -10/Subcaves | Lost 8 parts (2p2n1u3w) 3136 | -10/Subcaves | Destroyed by Y6-1I5(R) with Subdweller Laser Last Messages --------------- 02545_ Acquired Battle Rifle. 02552_ Subatomizers dissect the Disposable Heat Sink. 02766_ L8-VD4(R) Disposable Heat Sink blasted off. 02766_ L8-VD4(R) knocked back. 02780_ L8-VD4(R) destroyed. 02787_ Acquired 45 matter. 02811_ Searching scrap... 02811_ Found Sub. Power Source. 02811_ Found Battle Cannon. 02811_ Found 48 Matter. 02812_ Acquired 48 matter. 02819_ Acquired Battle Cannon. 02824_ Acquired Sub. Power Source. 03032_ Sub. Power Source shoots sparks and powers down. 03066_ WV-5EP(u) tweaks Twisted Machinery. 03121_ 6X-O9Z(R) knocked back. 03132_ 6X-O9Z(R) destroyed. Map ----- +----------------------------------------------------+ | ?????????????????????????????????????????????????? | | ?????????????????????????????????????????????????? | | ?????????????????????????????????????????????????? | | ?????????????????????????????????????????????????? | | ?????????????????????????????????????????????????? | | ?????????????????????????????????????????????????? | | ?????????????????????????????????????????????????? | | ?????????????????????????????????????????????????? | | ?????????????????????????????????????????????????? | | ?????????????????????????????????????????????????? | | ???????????????????????????####??????????#####???? | | ????????????????# #???????## ##????????## #???? | | ??????????????# # #??????# ##????#### #???? | | ?????????????? #?????# #????# #???? | | ?????????????? #????# ##???# #???? | | ???????????????# ????# ##??# ##???? | | ????????????????# #???# #??# #????? | | ?????????????#### ???# #??# ##????? | | ?????????????# ????# #??## ##?????? | | ??????????????# #???# ##?# ######??? | | ???????????????# #### ### #?# ##?? | | ???????????????# ## ## #?# #?? | | ????????? ## #### #?## #?? | | ????????? #??# #?## #?# | | ???????????# ##?# ### ### | | ???????????# ## @! #?# ## | | ???????????# ???## %R %#?# #### | | ???????????#### ??????# ## #####??# | | ?????????????????????# ###% #??????# """"" | | ?????????????????????###?? %##??? "" | | ?????????????????????????? ###??? # ### " | | ?????????????????????????? ##????? ### ####?## | | ????????????????????????? #?????? ???# #????? | | ????????????????????????? ??????# ????# ?????# | | ????????????????????????????????#?????## ?????# | | ??????????????????????????????????????? ????? | | ?????????????????????????????????????? # ##????? | | ??????????????????????????????????????? #??????? | | ??????????????????????????????????????? ??????? | | ??????????????????????????????????????? ???????? | | ??????????????????????????????????????? ???????? | | ?????????????????????????????????????????????????? | | ?????????????????????????????????????????????????? | | ?????????????????????????????????????????????????? | | ?????????????????????????????????????????????????? | | ?????????????????????????????????????????????????? | | ?????????????????????????????????????????????????? | | ?????????????????????????????????????????????????? | | ?????????????????????????????????????????????????? | | ?????????????????????????????????????????????????? | +----------------------------------------------------+ Best States ------------- Heat Dissipation 35 Energy Generation 15 Energy Capacity 400 Matter Stores 300 Matter Capacity 300 Sight Range 16 Terrain Scan Density 10 Resistance: KI 35 Resistance: TH 35 Resistance: EX 35 Resistance: EM 35 Resistance: I 35 Resistance: S 35 Resistance: P 35 Utility Shielding 33 Evasion (%) 55 Targeting Accuracy 5 Offensive Hacking 20 Item Schematics ----------------- None Robot Schematics ------------------ None Fabricated ------------ Nothing Repaired ---------- Ion Engine | 53% | -10/Materials Studied --------- None Alien Tech Used ----------------- None Achievements -------------- None Challenges ------------ None Game ------ Seed HugeGuidedDistortion Manual? 0 Play Time 00:17:41 Cumulative 2455.0 hours Start 2026.09.03 @ 11:53:39 End 2026.09.03 @ 12:07:40 Sessions 1 Manual Loads 0 Difficulty Explorer Special Mode None Game No. 1148 Rogue 62 Adventurer 0 Explorer 1086 Win Type - Total 13 Types 13/0/0/0/0/0/0/0/0/0 Lore% 67 Gallery% 68 Achievement% 50 Wizard Run 0 Options --------- Layout 1 ASCII 0 Keyboard 0 Movement Numpad Keybinds 0 Fullscreen 1 Font 48/Smallcaps Map View 50x35 Zoom Use 0% Tactical HUD 1 Map Filters NONE Filters NONE Steam 1 RUN: 044dcd7c-a2d5-4cf5-b1d9-1aa9d5c48afc